lending/lending_fUSD_20250706
["ID","MTS","AMOUNT","RATE_DAILY","PERIOD"]
[370019622,1751837053973,460.0,0.00030136,120]
[370019623,1751837054337,1009.92,0.00030136,120]
[370019624,1751837054593,460.0,0.00030136,120]
[370019625,1751837055471,460.0,0.00030136,120]
[370019626,1751837056443,1540.21,0.00030136,120]
[370019627,1751837057408,460.0,0.00030136,120]
[370019628,1751837057772,1110.13,0.00030136,120]
[370019629,1751837058381,460.0,0.00030136,120]
[370019630,1751837058844,460.0,0.00030136,120]
[370019631,1751837059895,513.32,0.00030136,120]
[370019632,1751837063831,260.63531821,0.00030136,120]
[370019633,1751837063898,460.0,0.00030136,120]
[370019634,1751837064700,635.08,0.00030136,120]
[370019635,1751837065109,460.0,0.00030136,120]
[370019636,1751837065894,460.0,0.00030136,120]
[370019637,1751837067168,460.0,0.00030136,120]
[370019638,1751837067517,460.0,0.00030136,120]
[370019639,1751837067664,460.0,0.00030136,120]
[370019640,1751837067937,188.03334686,0.00030136,120]
[370019641,1751837067978,904.02,0.00030136,120]
[370019642,1751837068098,1116.96,0.00030136,120]
[370019643,1751837068807,853.91,0.00030136,120]
[370019644,1751837069132,553.47,0.00030136,120]
[370019645,1751837072421,493.72,0.00030136,120]
[370019646,1751837072945,665.84,0.00030136,120]
[370019647,1751837074230,508.56,0.00030136,120]
[370019648,1751837075237,511.29,0.00030136,120]
[370019649,1751837076126,556.0,0.00030136,120]
[370019650,1751837077687,460.0,0.00030136,120]
[370019651,1751837077860,493.78,0.00030136,120]
[370019652,1751837078021,661.93,0.00030136,120]
[370019653,1751837078381,460.0,0.00030136,120]
[370019654,1751837079467,728.34,0.00030136,120]
[370019655,1751837080756,460.0,0.00030136,120]
[370019656,1751837081201,460.0,0.00030136,120]
[370019657,1751837085896,667.39,0.00030136,120]
[370019658,1751837086152,623.5,0.00030136,120]
[370019659,1751837089133,460.0,0.00030136,120]
[370019660,1751837090242,460.0,0.00030136,120]
[370019661,1751837090347,460.0,0.00030136,120]
[370019662,1751837090724,2127.86,0.00030136,120]
[370019663,1751837091158,603.67,0.00030136,120]
[370019664,1751837092779,271.16082113,0.00030136,120]
[370019665,1751837093032,787.6,0.00030136,120]
[370019666,1751837093293,588.64,0.00030136,120]
[370019667,1751837093392,460.0,0.00030136,120]
[370019668,1751837093436,709.65,0.00030136,120]
[370019669,1751837093956,598.37,0.00030136,120]
[370019670,1751837094008,511.51,0.00030136,120]
[370019671,1751837094296,719.0,0.00030136,120]
[370019672,1751837095631,495.53,0.00030136,120]
[370019673,1751837097155,704.96,0.00030136,120]
[370019674,1751837097883,460.0,0.00030136,120]
[370019675,1751837097951,577.55,0.00030136,120]
[370019676,1751837100461,706.28,0.00030136,120]
[370019677,1751837100663,904.41,0.00030136,120]
[370019678,1751837101787,1307.57,0.00030136,120]
[370019679,1751837102072,489.71,0.00030136,120]
[370019680,1751837102116,687.0,0.00030136,120]
[370019681,1751837102491,529.44,0.00030136,120]
[370019682,1751837102622,2129.22,0.00030136,120]
[370019683,1751837103596,604.33,0.00030136,120]
[370019684,1751837104475,707.07,0.00030136,120]
[370019685,1751837107631,10000.0,0.00014,2]
[370019686,1751837107654,10000.0,0.00014,2]
[370019687,1751837107679,10000.0,0.00014,2]
[370019688,1751837107707,10000.0,0.00014,2]
[370019689,1751837107733,10000.0,0.00014,2]
[370019690,1751837107762,10000.0,0.00014,2]
[370019691,1751837107790,10000.0,0.00014,2]
[370019692,1751837107812,10000.0,0.00014,2]
[370019693,1751837107834,10000.0,0.00014,2]
[370019694,1751837107862,10000.0,0.00014,2]
[370019695,1751837107896,10000.0,0.00014,2]
[370019696,1751837107927,10000.0,0.00014,2]
[370019697,1751837107959,10000.0,0.00014,2]
[370019698,1751837107988,10000.0,0.00014,2]
[370019699,1751837108022,10000.0,0.00014,2]
[370019700,1751837108051,10000.0,0.00014,2]
[370019701,1751837108073,10000.0,0.00014,2]
[370019702,1751837108126,10000.0,0.00014,2]
[370019703,1751837108162,10000.0,0.00014,2]
[370019704,1751837108185,10000.0,0.00014,2]
[370019705,1751837108214,10000.0,0.00014,2]
[370019706,1751837108246,10000.0,0.00014,2]
[370019707,1751837108278,10000.0,0.00014,2]
[370019708,1751837108304,10000.0,0.00014,2]
[370019709,1751837108328,10000.0,0.00014,2]
[370019710,1751837108362,10000.0,0.00014,2]
[370019711,1751837108384,10000.0,0.00014,2]
[370019712,1751837108407,10000.0,0.00014,2]
[370019713,1751837108429,10000.0,0.00014,2]
[370019714,1751837108452,10000.0,0.00014,2]
[370019715,1751837108474,10000.0,0.00014,2]
[370019716,1751837108496,10000.0,0.00014,2]
[370019717,1751837108519,10000.0,0.00014,2]
[370019718,1751837108541,10000.0,0.00014,2]
[370019719,1751837108562,10000.0,0.00014,2]
[370019720,1751837108585,10000.0,0.00014,2]
[370019721,1751837108606,10000.0,0.00014,2]
[370019722,1751837108628,10000.0,0.00014,2]
[370019723,1751837108651,10000.0,0.00014,2]
[370019724,1751837108673,10000.0,0.00014,2]
[370019725,1751837108694,10000.0,0.00014,2]
[370019726,1751837108716,10000.0,0.00014,2]
[370019727,1751837108740,10000.0,0.00014,2]
[370019728,1751837108762,8358.16189779,0.00014,2]
[370019729,1751837110542,567.32,0.00030136,120]
[370019730,1751837110866,685.23,0.00030136,120]
[370019731,1751837110917,460.0,0.00030136,120]
[370019732,1751837110962,634.67,0.00030136,120]
[370019733,1751837111583,1167.93,0.00030136,120]
[370019734,1751837111879,975.47,0.00030136,120]
[370019735,1751837112190,899.26,0.00030136,120]
[370019736,1751837112821,1067.58,0.00030136,120]
[370019737,1751837113906,536.06,0.00030136,120]
[370019738,1751837115233,475.45,0.00030136,120]
[370019739,1751837117153,460.0,0.00030136,120]
[370019740,1751837117491,460.0,0.00030136,120]
[370019741,1751837117990,460.0,0.00030136,120]
[370019742,1751837120503,418.04086995,0.00030136,120]
[370019743,1751837120569,1592.3,0.00030136,120]
[370019744,1751837124740,1815.64,0.00030136,120]
[370019745,1751837125330,640.04,0.00030136,120]
[370019746,1751837125827,460.0,0.00030136,120]
[370019747,1751837125872,521.17,0.00030136,120]
[370019748,1751837127636,460.0,0.00030136,120]
[370019749,1751837129293,574.96,0.00030136,120]
[370019750,1751837131395,460.0,0.00030136,120]
[370019751,1751837131595,460.0,0.00030136,120]
[370019752,1751837131696,460.0,0.00030136,120]
[370019753,1751837132534,668.6,0.00030136,120]
[370019754,1751837132606,460.0,0.00030136,120]
[370019755,1751837133611,540.32,0.00030136,120]
[370019756,1751837135032,481.97,0.00030136,120]
[370019757,1751837135813,460.0,0.00030136,120]
[370019758,1751837135907,714.29,0.00030136,120]
[370019759,1751837136177,655.42,0.00030136,120]
[370019760,1751837136470,473.92,0.00030136,120]
[370019761,1751837137030,711.04,0.00030136,120]
[370019762,1751837137088,1408.54,0.00030136,120]
[370019763,1751837138094,460.0,0.00030136,120]
[370019764,1751837138605,336.13554712,0.00030136,120]
[370019765,1751837140574,460.0,0.00030136,120]
[370019766,1751837142178,460.0,0.00030136,120]
[370019767,1751837143025,557.45,0.00030136,120]
[370019768,1751837144693,460.0,0.00030136,120]
[370019769,1751837144747,1041.05,0.00030136,120]
[370019770,1751837145363,791.04,0.00030136,120]
[370019771,1751837145668,460.0,0.00030136,120]
[370019772,1751837146774,1603.27,0.00030136,120]
[370019773,1751837146830,460.0,0.00030136,120]
[370019774,1751837146944,1106.65,0.00030136,120]
[370019775,1751837147556,492.0,0.00030136,120]
[370019776,1751837150321,460.0,0.00030136,120]
[370019777,1751837152664,4331.96,0.00030136,120]
[370019778,1751837153055,850.24,0.00030136,120]
[370019779,1751837153751,460.0,0.00030136,120]
[370019780,1751837154017,486.64,0.00030136,120]
[370019781,1751837154235,460.0,0.00030136,120]
[370019782,1751837155417,574.21,0.00030136,120]
[370019783,1751837155595,550.01,0.00030136,120]
[370019784,1751837155797,1100.41,0.00030136,120]
[370019785,1751837156436,502.02,0.00030136,120]
[370019786,1751837157903,460.0,0.00030136,120]
[370019787,1751837158773,156.79,0.00013699,2]
[370019788,1751837159438,545.16,0.00030136,120]
[370019789,1751837159702,2498.9,0.00030136,120]
[370019791,1751837161351,858.36,0.00030136,120]
[370019793,1751837164474,2254.03,0.00030136,120]
[370019794,1751837165062,1327.85,0.00030136,120]
[370019795,1751837165812,788.98,0.00030136,120]
[370019796,1751837166263,754.38,0.00030136,120]
[370019797,1751837167298,1900.98,0.00030136,120]
[370019798,1751837167823,469.76,0.00030136,120]
[370019799,1751837168318,558.54,0.00030136,120]
[370019800,1751837172826,1380.35,0.00030136,120]
[370019801,1751837172921,2108.11,0.00030136,120]
[370019802,1751837173807,581.08,0.00030136,120]
[370019803,1751837174136,460.0,0.00030136,120]
[370019804,1751837174397,828.24,0.00030136,120]
[370019805,1751837176371,460.0,0.00030136,120]
[370019806,1751837176566,2590.17,0.00030136,120]
[370019807,1751837179893,460.0,0.00030136,120]
[370019808,1751837180958,674.36,0.00030136,120]
[370019809,1751837181818,460.0,0.00030136,120]
[370019810,1751837184100,574.6,0.00030136,120]
[370019811,1751837184634,460.0,0.00030136,120]
[370019812,1751837185137,964.04,0.00030136,120]
[370019813,1751837185511,460.0,0.00030136,120]
[370019814,1751837186903,1000.0,0.00030136,120]
[370019815,1751837187151,496.09164443,0.00030136,120]
[370019816,1751837187673,460.0,0.00030136,120]
[370019817,1751837187725,1855.92,0.00030136,120]
[370019818,1751837187775,460.0,0.00030136,120]
[370019819,1751837189273,1227.64,0.00030136,120]
[370019820,1751837192678,467.12180159,0.00030136,120]
[370019821,1751837193090,715.91,0.00030136,120]
[370019822,1751837193236,460.0,0.00030136,120]
[370019823,1751837194697,460.0,0.00030136,120]
[370019824,1751837195256,589.13,0.00030136,120]
[370019825,1751837195908,578.38,0.00030136,120]
[370019826,1751837196034,460.0,0.00030136,120]
[370019827,1751837196168,460.0,0.00030136,120]
[370019828,1751837196332,186.71,0.00014664,2]
[370019830,1751837201558,460.0,0.00030136,120]
[370019831,1751837201616,460.0,0.00030136,120]
[370019832,1751837202939,902.25,0.00030136,120]
[370019833,1751837203341,460.0,0.00030136,120]
[370019834,1751837204799,644.58,0.00030136,120]
[370019835,1751837204847,2697.61,0.00030136,120]
[370019836,1751837206649,929.61,0.00030136,120]
[370019837,1751837206882,460.0,0.00030136,120]
[370019838,1751837207900,1041.93,0.00030136,120]
[370019839,1751837208181,1968.66,0.00030136,120]
[370019840,1751837208692,1045.65,0.00030136,120]
[370019841,1751837208837,460.0,0.00030136,120]
[370019842,1751837209635,460.0,0.00030136,120]
[370019843,1751837212775,460.0,0.00030136,120]
[370019844,1751837213642,603.32,0.00030136,120]
[370019845,1751837214916,685.23,0.00030136,120]
[370019846,1751837215057,811.02,0.00030136,120]
[370019847,1751837215621,882.93,0.00030136,120]
[370019848,1751837216271,766.02,0.00030136,120]
[370019849,1751837218481,460.0,0.00030136,120]
[370019850,1751837219493,638.85,0.00030136,120]
[370019851,1751837220801,42931.14,0.00030136,120]
[370019852,1751837222231,529.07,0.00030136,120]
[370019853,1751837224420,1696.56,0.00030136,120]
[370019854,1751837225066,460.0,0.00030136,120]
[370019855,1751837227479,460.0,0.00030136,120]
[370019856,1751837227530,969.59,0.00030136,120]
[370019857,1751837229349,608.52,0.00030136,120]
[370019858,1751837230725,689.74,0.00030136,120]
[370019859,1751837232035,1149.74,0.00030136,120]
[370019860,1751837232904,3545.07,0.00030136,120]
[370019861,1751837232972,1584.54,0.00030136,120]
[370019862,1751837233351,589.16,0.00030136,120]
[370019863,1751837234296,460.0,0.00030136,120]
[370019864,1751837238288,732.05,0.00030136,120]
[370019865,1751837238628,460.0,0.00030136,120]
[370019866,1751837240060,460.0,0.00030136,120]
[370019867,1751837240979,528.28,0.00030136,120]
[370019868,1751837243561,6562.84,0.00030136,120]
[370019869,1751837244897,460.0,0.00030136,120]
[370019870,1751837245003,831.82,0.00030136,120]
[370019871,1751837245332,290.17045772,0.00030136,120]
[370019872,1751837248370,460.0,0.00030136,120]
[370019874,1751837250499,460.0,0.00030136,120]
[370019875,1751837252059,460.0,0.00030136,120]
[370019876,1751837253391,1117.51,0.00030136,120]
[370019877,1751837253813,485.35,0.00030136,120]
[370019878,1751837253877,426.91769311,0.00030136,120]
[370019879,1751837254203,1232.48,0.00030136,120]
[370019880,1751837257761,711.44,0.00030136,120]
[370019881,1751837258626,344.21282191,0.00030136,120]
[370019882,1751837258849,570.15,0.00030136,120]
[370019883,1751837259154,1042.06,0.00030136,120]
[370019884,1751837259354,673.81,0.00030136,120]
[370019885,1751837260496,460.0,0.00030136,120]
[370019886,1751837260982,460.0,0.00030136,120]
[370019887,1751837264488,628.94,0.00030136,120]
[370019888,1751837264966,460.0,0.00030136,120]
[370019889,1751837267320,525.11,0.00030136,120]
[370019890,1751837268399,575.57,0.00030136,120]
[370019891,1751837268533,460.0,0.00030136,120]
[370019892,1751837269739,251.99685935,0.00030136,120]
[370019893,1751837269924,530.37,0.00030136,120]
[370019894,1751837270858,505.69593764,0.00030136,120]
[370019895,1751837271362,1349.06,0.00030136,120]
[370019896,1751837271674,548.71,0.00030136,120]
[370019897,1751837271794,460.0,0.00030136,120]
[370019898,1751837275240,460.0,0.00030136,120]
[370019899,1751837277520,547.2,0.00030136,120]
[370019900,1751837277565,7802.29,0.00030136,120]
[370019901,1751837278409,1069.19,0.00030136,120]
[370019902,1751837278565,460.0,0.00030136,120]
[370019903,1751837278748,701.62,0.00030136,120]
[370019904,1751837279551,460.0,0.00030136,120]
[370019905,1751837280084,460.0,0.00030136,120]
[370019906,1751837285504,460.0,0.00030136,120]
[370019907,1751837286600,569.67078445,0.00030136,120]
[370019908,1751837287022,830.89,0.00030136,120]
[370019909,1751837287128,460.0,0.00030136,120]
[370019910,1751837287248,575.75,0.00030136,120]
[370019911,1751837289491,460.0,0.00030136,120]
[370019912,1751837290385,460.0,0.00030136,120]
[370019913,1751837292560,529.4,0.00030136,120]
[370019914,1751837293278,2022.2,0.00030136,120]
[370019915,1751837293914,1070.42,0.00030136,120]
[370019916,1751837293959,460.0,0.00030136,120]
[370019917,1751837294718,690.69,0.00030136,120]
[370019918,1751837294991,553.15065603,0.00030136,120]
[370019919,1751837297984,509.32,0.00030136,120]
[370019920,1751837300056,1476.03,0.00030136,120]
[370019921,1751837303506,460.0,0.00030136,120]
[370019922,1751837303785,460.0,0.00030136,120]
[370019923,1751837304990,464.47,0.00030136,120]
[370019924,1751837305151,460.0,0.00030136,120]
[370019925,1751837306042,1583.61,0.00030136,120]
[370019926,1751837307217,1063.88,0.00030136,120]
[370019927,1751837307822,697.99,0.00030136,120]
[370019928,1751837310047,866.36,0.00030136,120]
[370019929,1751837310579,460.0,0.00030136,120]
[370019930,1751837311364,893.64,0.00030136,120]
[370019931,1751837311910,460.0,0.00030136,120]
[370019932,1751837312418,579.15,0.00030136,120]
[370019934,1751837313379,460.0,0.00030136,120]
[370019935,1751837315682,460.0,0.00030136,120]
[370019936,1751837316041,521.27,0.00030136,120]
[370019937,1751837316413,460.0,0.00030136,120]
[370019938,1751837317834,460.0,0.00030136,120]
[370019939,1751837318521,488.9,0.00030136,120]
[370019940,1751837318827,460.0,0.00030136,120]
[370019941,1751837318871,920.09,0.00030136,120]
[370019942,1751837318954,460.0,0.00030136,120]
[370019943,1751837319260,460.0,0.00030136,120]
[370019944,1751837320792,460.0,0.00030136,120]
[370019945,1751837321150,1000.78,0.00030136,120]
[370019946,1751837321279,663.3,0.00030136,120]
[370019947,1751837321470,513.72,0.00030136,120]
[370019948,1751837322008,460.0,0.00030136,120]
[370019949,1751837322782,460.0,0.00030136,120]
[370019950,1751837324394,460.0,0.00030136,120]
[370019951,1751837325301,460.0,0.00030136,120]
[370019952,1751837326445,460.0,0.00030136,120]
[370019953,1751837326826,608.62,0.00030136,120]
[370019954,1751837328158,473.2,0.00030136,120]
[370019955,1751837330257,961.12,0.00030136,120]
[370019956,1751837330308,1303.66,0.00030136,120]
[370019957,1751837331286,460.0,0.00030136,120]
[370019958,1751837332895,460.0,0.00030136,120]
[370019959,1751837334870,629.35,0.00030136,120]
[370019960,1751837335252,1253.09,0.00030136,120]
[370019961,1751837335755,532.83,0.00030136,120]
[370019962,1751837338361,460.0,0.00030136,120]
[370019963,1751837340074,2273.09,0.00030136,120]
[370019964,1751837340909,1693.87,0.00030136,120]
[370019965,1751837340959,460.0,0.00030136,120]
[370019966,1751837343797,681.41,0.00030136,120]
[370019967,1751837343850,578.52,0.00030136,120]
[370019968,1751837343931,460.0,0.00030136,120]
[370019969,1751837345164,675.59,0.00030136,120]
[370019970,1751837346663,152.91917851,0.00014664,2]
[370019971,1751837347462,783.33,0.00030136,120]
[370019972,1751837348225,460.0,0.00030136,120]
[370019973,1751837349243,564.11,0.00030136,120]
[370019974,1751837352192,248.73323565,0.00030136,120]
[370019975,1751837352361,460.0,0.00030136,120]
[370019976,1751837352786,573.44,0.00030136,120]
[370019977,1751837353049,861.79,0.00030136,120]
[370019978,1751837353724,489.99,0.00030136,120]
[370019979,1751837356619,997.67,0.00030136,120]
[370019980,1751837357463,460.0,0.00030136,120]
[370019981,1751837359249,1739.99,0.00030136,120]
[370019982,1751837361613,677.61,0.00030136,120]
[370019983,1751837362275,7415.04,0.00030136,120]
[370019984,1751837362803,460.0,0.00030136,120]
[370019985,1751837362967,460.0,0.00030136,120]
[370019986,1751837363019,460.0,0.00030136,120]
[370019987,1751837365286,460.0,0.00030136,120]
[370019988,1751837367024,502.08,0.00030136,120]
[370019989,1751837367067,460.0,0.00030136,120]
[370019990,1751837367130,460.0,0.00030136,120]
[370019991,1751837369499,2039.2,0.00030136,120]
[370019992,1751837370676,460.0,0.00030136,120]
[370019993,1751837370729,500.0,0.00030136,120]
[370019994,1751837370949,1349.85,0.00030136,120]
[370019995,1751837372023,636.87,0.00030136,120]
[370019996,1751837373445,517.81,0.00030136,120]
[370019997,1751837373558,627.2,0.00030136,120]
[370019998,1751837373846,461.88,0.00030136,120]
[370019999,1751837374915,638.1,0.00030136,120]
[370020000,1751837376919,466.28,0.00030136,120]
[370020001,1751837381873,1536.46,0.00030136,120]
[370020002,1751837382135,460.0,0.00030136,120]
[370020003,1751837382308,866.72,0.00030136,120]
[370020004,1751837383180,460.0,0.00030136,120]
[370020005,1751837384262,984.21,0.00030136,120]
[370020006,1751837385827,1394.01,0.00030136,120]
[370020007,1751837388432,519.45,0.00030136,120]
[370020008,1751837388517,633.74,0.00030136,120]
[370020009,1751837388563,460.0,0.00030136,120]
[370020010,1751837390820,551.0,0.00030136,120]
[370020011,1751837393072,2040.5,0.00030136,120]
[370020012,1751837393960,1176.49,0.00030136,120]
[370020013,1751837394790,1054.56,0.00030136,120]
[370020014,1751837395142,460.0,0.00030136,120]
[370020015,1751837395989,967.84,0.00030136,120]
[370020016,1751837397484,460.0,0.00030136,120]
[370020017,1751837398961,460.0,0.00030136,120]
[370020018,1751837399557,460.0,0.00030136,120]
[370020019,1751837400597,460.0,0.00030136,120]
[370020020,1751837401196,1119.27,0.00030136,120]
[370020021,1751837401241,460.0,0.00030136,120]
[370020022,1751837403510,747.2,0.00030136,120]
[370020025,1751837404316,460.0,0.00030136,120]
[370020028,1751837405175,460.0,0.00030136,120]
[370020029,1751837405357,460.0,0.00030136,120]
[370020030,1751837405840,697.0,0.00030136,120]
[370020031,1751837405997,617.72,0.00030136,120]
[370020032,1751837406404,756.11,0.00030136,120]
[370020033,1751837407748,1821.77,0.00030136,120]
[370020034,1751837407902,460.0,0.00030136,120]
[370020035,1751837410754,615.94,0.00030136,120]
[370020036,1751837410868,460.0,0.00030136,120]
[370020037,1751837411418,460.0,0.00030136,120]
[370020038,1751837411564,1525.96,0.00030136,120]
[370020039,1751837412884,460.0,0.00030136,120]
[370020040,1751837413507,2020.28,0.00030136,120]
[370020041,1751837416232,460.0,0.00030136,120]
[370020042,1751837417340,460.0,0.00030136,120]
[370020043,1751837417536,1060.54,0.00030136,120]
[370020044,1751837418390,460.0,0.00030136,120]
[370020045,1751837419631,2482.25,0.00030136,120]
[370020046,1751837421475,614.37,0.00030136,120]
[370020047,1751837421731,460.0,0.00030136,120]
[370020048,1751837422614,2394.77,0.00030136,120]
[370020049,1751837422917,640.74,0.00030136,120]
[370020050,1751837423128,1142.36,0.00030136,120]
[370020051,1751837424042,639.58,0.00030136,120]
[370020052,1751837424093,460.0,0.00030136,120]
[370020053,1751837425539,550.28,0.00030136,120]
[370020054,1751837426500,707.56,0.00030136,120]
[370020055,1751837428416,460.0,0.00030136,120]
[370020056,1751837428719,517.37,0.00030136,120]
[370020057,1751837429237,707.97,0.00030136,120]
[370020058,1751837430232,1000.0,0.00030136,120]
[370020064,1751837432201,-295.80682,0.00016964,2]
[370020069,1751837432590,-194.19318,0.00016964,2]
[370020070,1751837432606,-409.80682,0.00017064,2]
[370020125,1751837433760,460.0,0.00030136,120]
[370020208,1751837436939,1778.59,0.00030136,120]
[370020209,1751837437528,689.04,0.00030136,120]
[370020210,1751837437664,460.0,0.00030136,120]
[370020212,1751837437988,460.0,0.00030136,120]
[370020214,1751837438051,460.0,0.00030136,120]
[370020215,1751837438572,460.0,0.00030136,120]
[370020216,1751837438760,958.11,0.00030136,120]
[370020217,1751837439406,1049.05,0.00030136,120]
[370020218,1751837439990,460.0,0.00030136,120]
[370020219,1751837440504,460.0,0.00030136,120]
[370020223,1751837440970,-90.19318,0.00017064,2]
[370020225,1751837440980,-500.0,0.00017064,2]
[370020227,1751837440990,-540.0,0.00017318,2]
[370020228,1751837441000,-250.0,0.00017419,2]
[370020229,1751837441010,-2111.47932,0.0001781,2]
[370020230,1751837441020,-176.26266107,0.000179,2]
[370020231,1751837441030,-246.72117178,0.00018,2]
[370020288,1751837442096,-2028.19956975,0.00018,2]
[370020290,1751837442106,-482.33694444,0.00018053,2]
[370020293,1751837442125,-717.66305556,0.00018053,2]
[370020295,1751837442134,-1298.63935791,0.00018054,2]
[370020297,1751837442146,-205.90894209,0.00018054,2]
[370020299,1751837442155,-84.20216751,0.000181,2]
[370020301,1751837442166,-118.70422238,0.000181,2]
[370020303,1751837442176,-239.49852266,0.00018154,2]
[370020307,1751837442208,-422.04147734,0.00018154,2]
[370020309,1751837442218,-150.0,0.0001816,2]
[370020311,1751837442229,-300.0,0.00018162,2]
[370020313,1751837442239,-55.5537447,0.00018164,2]
[370020315,1751837442250,-2739.38940214,0.00018164,2]
[370020317,1751837442261,-1524.84358092,0.00018164,2]
[370020320,1751837442275,-958.84877962,0.00018164,2]
[370020322,1751837442287,-788.82501192,0.00018164,2]
[370020325,1751837442310,-2249.41774956,0.00018164,2]
[370020331,1751837442338,-14949.96173114,0.00018164,2]
[370020334,1751837442352,-207.4,0.0001817,2]
[370020337,1751837442361,-666.0,0.00018176,2]
[370020340,1751837442372,-250.0,0.0001819,2]
[370020342,1751837442381,-1000.0,0.00018193,2]
[370020344,1751837442391,-181.69,0.00018204,2]
[370020347,1751837442402,-186.45,0.0001833,2]
[370020349,1751837442411,-776.4,0.00018341,2]
[370020351,1751837442421,-159.27,0.00018412,2]
[370020353,1751837442430,-166.66,0.00018721,2]
[370020355,1751837442440,-250.0,0.0001877,2]
[370020357,1751837442449,-278.494985,0.00018794,2]
[370020359,1751837442459,-777.0074504,0.00018837,2]
[370020361,1751837442470,-753.02415,0.0001889,2]
[370020362,1751837442479,-1433.1734557,0.000189,2]
[370020364,1751837442488,-753.02416,0.0001901,2]
[370020366,1751837442498,-879.109,0.00019067,2]
[370020368,1751837442508,-302.0,0.00019074,2]
[370020370,1751837442518,-168.0,0.00019079,2]
[370020372,1751837442527,-210.28571445,0.00019097,2]
[370020374,1751837442538,-160.0,0.00019097,2]
[370020376,1751837442547,-836.76783547,0.00019097,2]
[370020378,1751837442557,-640.0,0.00019115,2]
[370020380,1751837442567,-805.0,0.00019115,2]
[370020382,1751837442576,-1283.0,0.00019115,2]
[370020384,1751837442586,-727.28151784,0.00019115,2]
[370020466,1751837443339,-203.71848216,0.00019115,2]
[370020468,1751837443352,-1681.0,0.00019115,2]
[370020470,1751837443364,-593.0,0.00019115,2]
[370020472,1751837443374,-560.0,0.00019115,2]
[370020474,1751837443383,-887.0,0.00019115,2]
[370020476,1751837443392,-4.67547028,0.00019115,2]
[370020478,1751837443404,-1159.32452972,0.00019115,2]
[370020481,1751837443414,-4110.0,0.00019115,2]